fUST/lending_fUST_20251224
["ID","MTS","AMOUNT","RATE_DAILY","PERIOD"]
[399634554,1766576111833,500.0,0.00032876,120]
[399634555,1766576111959,2069.53,0.00032876,120]
[399634556,1766576112089,500.0,0.00032876,120]
[399634557,1766576112445,500.0,0.00032876,120]
[399634558,1766576112497,2069.53,0.00032876,120]
[399634559,1766576112616,500.0,0.00032876,120]
[399634560,1766576112666,500.0,0.00032876,120]
[399634561,1766576112742,2069.53,0.00032876,120]
[399634562,1766576112814,500.0,0.00032876,120]
[399634563,1766576112870,500.0,0.00032876,120]
[399634564,1766576112921,2069.53,0.00032876,120]
[399634565,1766576112984,500.0,0.00032876,120]
[399634566,1766576113046,500.0,0.00032876,120]
[399634567,1766576113096,2069.53,0.00032876,120]
[399634568,1766576113152,500.0,0.00032876,120]
[399634569,1766576113204,500.0,0.00032876,120]
[399634570,1766576113265,2069.53,0.00032876,120]
[399634571,1766576113330,500.0,0.00032876,120]
[399634572,1766576113387,500.0,0.00032876,120]
[399634573,1766576113465,2069.53,0.00032876,120]
[399634574,1766576113564,580.34069871,0.00032876,120]
[399634575,1766576113617,500.0,0.00032876,120]
[399634576,1766576113729,2069.53,0.00032876,120]
[399634577,1766576113858,500.0,0.00032876,120]
[399634579,1766576114066,2069.53,0.00032876,120]
[399634580,1766576114179,500.0,0.00032876,120]
[399634581,1766576114398,2069.53,0.00032876,120]
[399634582,1766576114463,500.0,0.00032876,120]
[399634583,1766576114518,2069.53,0.00032876,120]
[399634584,1766576114610,6348.85,0.00032876,120]
[399634585,1766576114730,517.5793908,0.00032876,120]
[399634586,1766576114789,3235.53,0.00032876,120]
[399634587,1766576114848,2069.53,0.00032876,120]
[399634588,1766576114926,6348.85,0.00032876,120]
[399634589,1766576114977,3235.53,0.00032876,120]
[399634590,1766576115029,402.02867107,0.00032876,120]
[399634591,1766576115081,2069.53,0.00032876,120]
[399634592,1766576115144,500.0,0.00032876,120]
[399634593,1766576115201,6348.85,0.00032876,120]
[399634594,1766576115266,3235.53,0.00032876,120]
[399634595,1766576115328,2069.53,0.00032876,120]
[399634596,1766576115408,500.0,0.00032876,120]
[399634597,1766576115458,6348.85,0.00032876,120]
[399634598,1766576115543,3235.53,0.00032876,120]
[399634599,1766576115598,2069.53,0.00032876,120]
[399634600,1766576115669,500.0,0.00032876,120]
[399634601,1766576115724,6348.85,0.00032876,120]
[399634602,1766576115796,3235.53,0.00032876,120]
[399634603,1766576115853,2069.53,0.00032876,120]
[399634604,1766576115923,500.0,0.00032876,120]
[399634605,1766576115977,6348.85,0.00032876,120]
[399634606,1766576116038,3235.53,0.00032876,120]
[399634607,1766576116090,2069.53,0.00032876,120]
[399634608,1766576116233,500.0,0.00032876,120]
[399634609,1766576116289,6348.85,0.00032876,120]
[399634610,1766576116348,3235.53,0.00032876,120]
[399634611,1766576116409,2069.53,0.00032876,120]
[399634612,1766576116470,500.0,0.00032876,120]
[399634613,1766576116525,6348.85,0.00032876,120]
[399634614,1766576116608,2069.53,0.00032876,120]
[399634615,1766576116884,500.0,0.00032876,120]
[399634616,1766576116958,6348.85,0.00032876,120]
[399634617,1766576117118,2069.68996262,0.00032876,120]
[399634618,1766576117191,3235.53,0.00032876,120]
[399634619,1766576117241,500.0,0.00032876,120]
[399634620,1766576117290,6348.85,0.00032876,120]
[399634621,1766576117407,3235.53,0.00032876,120]
[399634622,1766576117462,500.0,0.00032876,120]
[399634623,1766576117517,6348.85,0.00032876,120]
[399634624,1766576117590,500.0,0.00032876,120]
[399634625,1766576117637,3235.53,0.00032876,120]
[399634626,1766576117688,6348.85,0.00032876,120]
[399634627,1766576117750,500.0,0.00032876,120]
[399634628,1766576117795,3235.53,0.00032876,120]
[399634629,1766576117853,6348.85,0.00032876,120]
[399634630,1766576117915,3235.53,0.00032876,120]
[399634631,1766576117963,500.0,0.00032876,120]
[399634632,1766576118025,6348.85,0.00032876,120]
[399634633,1766576118073,3235.53,0.00032876,120]
[399634634,1766576118159,500.0,0.00032876,120]
[399634635,1766576118376,6348.85,0.00032876,120]
[399634636,1766576118428,3235.53,0.00032876,120]
[399634637,1766576118477,500.0,0.00032876,120]
[399634638,1766576118541,6348.85,0.00032876,120]
[399634639,1766576118596,3235.53,0.00032876,120]
[399634640,1766576119094,6348.85,0.00032876,120]
[399634641,1766576119141,500.0,0.00032876,120]
[399634642,1766576119211,6348.85,0.00032876,120]
[399634643,1766576119263,500.0,0.00032876,120]
[399634644,1766576119328,3235.53,0.00032876,120]
[399634645,1766576119382,6348.85,0.00032876,120]
[399634646,1766576119431,1197.67,0.00032876,120]
[399634647,1766576119479,500.0,0.00032876,120]
[399634648,1766576119531,3235.53,0.00032876,120]
[399634649,1766576119587,1197.67,0.00032876,120]
[399634650,1766576119633,6348.85,0.00032876,120]
[399634651,1766576119677,500.0,0.00032876,120]
[399634652,1766576119744,6348.85,0.00032876,120]
[399634653,1766576119789,1197.67,0.00032876,120]
[399634654,1766576119834,527.34477937,0.00032876,120]
[399634655,1766576119889,6348.85,0.00032876,120]
[399634656,1766576119945,3235.53,0.00032876,120]
[399634657,1766576120026,6348.85,0.00032876,120]
[399634658,1766576120092,1197.67,0.00032876,120]
[399634659,1766576120199,3235.53,0.00032876,120]
[399634660,1766576120288,6348.93715401,0.00032876,120]
[399634661,1766576120338,1197.67,0.00032876,120]
[399634662,1766576120669,3235.53,0.00032876,120]
[399634663,1766576120721,1197.67,0.00032876,120]
[399634664,1766576120787,3235.53,0.00032876,120]
[399634665,1766576120836,1197.67,0.00032876,120]
[399634666,1766576120911,3235.53,0.00032876,120]
[399634667,1766576121023,1197.67,0.00032876,120]
[399634668,1766576121208,3235.53,0.00032876,120]
[399634669,1766576121262,1197.67,0.00032876,120]
[399634670,1766576121408,3235.73285305,0.00032876,120]
[399634671,1766576121474,1197.67,0.00032876,120]
[399634672,1766576121541,598.7,0.00032876,120]
[399634673,1766576121724,1197.67,0.00032876,120]
[399634674,1766576121956,598.7,0.00032876,120]
[399634675,1766576122004,1197.67,0.00032876,120]
[399634676,1766576122227,598.7,0.00032876,120]
[399634677,1766576122280,1197.67,0.00032876,120]
[399634678,1766576122329,619.5913151,0.00032876,120]
[399634679,1766576122450,598.7,0.00032876,120]
[399634680,1766576122496,1197.67,0.00032876,120]
[399634681,1766576122677,598.7,0.00032876,120]
[399634682,1766576122729,1197.67,0.00032876,120]
[399634683,1766576122911,1197.67,0.00032876,120]
[399634684,1766576122958,598.7,0.00032876,120]
[399634685,1766576123219,817.67,0.00032876,120]
[399634686,1766576123269,598.7,0.00032876,120]
[399634687,1766576123455,598.7,0.00032876,120]
[399634688,1766576123518,1197.67,0.00032876,120]
[399634689,1766576123680,598.7,0.00032876,120]
[399634690,1766576123766,1197.67,0.00032876,120]
[399634691,1766576123826,817.67,0.00032876,120]
[399634692,1766576123906,598.7,0.00032876,120]
[399634693,1766576124012,1197.67,0.00032876,120]
[399634694,1766576124073,817.67,0.00032876,120]
[399634695,1766576124141,598.7,0.00032876,120]
[399634696,1766576124237,1197.67,0.00032876,120]
[399634697,1766576124304,817.67,0.00032876,120]
[399634698,1766576124455,598.7,0.00032876,120]
[399634699,1766576124514,1197.67,0.00032876,120]
[399634700,1766576124641,817.67,0.00032876,120]
[399634701,1766576124699,598.7,0.00032876,120]
[399634702,1766576124750,1197.67,0.00032876,120]
[399634703,1766576124799,817.67,0.00032876,120]
[399634704,1766576124928,598.7,0.00032876,120]
[399634705,1766576124982,1197.67,0.00032876,120]
[399634706,1766576125031,500.0,0.00032876,120]
[399634707,1766576125085,817.67,0.00032876,120]
[399634708,1766576125194,598.7,0.00032876,120]
[399634709,1766576125253,1197.73951301,0.00032876,120]
[399634710,1766576125301,500.0,0.00032876,120]
[399634711,1766576125353,817.67,0.00032876,120]
[399634712,1766576125405,500.0,0.00032876,120]
[399634713,1766576125452,598.7,0.00032876,120]
[399634714,1766576125499,817.67,0.00032876,120]
[399634715,1766576125671,817.67,0.00032876,120]
[399634716,1766576125758,598.7,0.00032876,120]
[399634717,1766576125814,500.0,0.00032876,120]
[399634718,1766576125916,817.67,0.00032876,120]
[399634719,1766576126031,598.7,0.00032876,120]
[399634720,1766576126135,500.0,0.00032876,120]
[399634721,1766576126257,817.67,0.00032876,120]
[399634722,1766576126312,598.7,0.00032876,120]
[399634723,1766576126362,500.0,0.00032876,120]
[399634724,1766576126659,817.67,0.00032876,120]
[399634725,1766576126717,598.7,0.00032876,120]
[399634726,1766576126764,500.0,0.00032876,120]
[399634727,1766576126852,500.0,0.00032876,120]
[399634728,1766576126981,817.67,0.00032876,120]
[399634729,1766576127030,598.7,0.00032876,120]
[399634730,1766576127076,500.0,0.00032876,120]
[399634731,1766576127122,500.0,0.00032876,120]
[399634732,1766576127199,598.7,0.00032876,120]
[399634733,1766576127251,500.0,0.00032876,120]
[399634734,1766576127304,500.0,0.00032876,120]
[399634735,1766576127375,817.67,0.00032876,120]
[399634736,1766576127460,598.7,0.00032876,120]
[399634737,1766576127514,500.0,0.00032876,120]
[399634738,1766576127567,500.0,0.00032876,120]
[399634739,1766576127630,817.67,0.00032876,120]
[399634740,1766576127704,500.0,0.00032876,120]
[399634741,1766576127777,598.89443199,0.00032876,120]
[399634742,1766576127825,500.0,0.00032876,120]
[399634743,1766576127876,817.67,0.00032876,120]
[399634744,1766576127933,500.0,0.00032876,120]
[399634745,1766576127996,500.0,0.00032876,120]
[399634746,1766576128047,817.67,0.00032876,120]
[399634747,1766576128145,500.0,0.00032876,120]
[399634748,1766576128197,500.0,0.00032876,120]
[399634749,1766576128248,817.67,0.00032876,120]
[399634750,1766576128304,500.0,0.00032876,120]
[399634751,1766576128395,817.67,0.00032876,120]
[399634752,1766576128458,500.0,0.00032876,120]
[399634753,1766576128509,500.0,0.00032876,120]
[399634754,1766576128613,817.67,0.00032876,120]
[399634755,1766576128665,199.41021158,0.00032876,120]
[399634756,1766576128721,817.67,0.00032876,120]
[399634757,1766576128876,500.0,0.00032876,120]
[399634758,1766576128939,817.67,0.00032876,120]
[399634759,1766576129471,817.74903282,0.00032876,120]
[399634760,1766576129522,500.0,0.00032876,120]
[399634761,1766576129596,500.0,0.00032876,120]
[399634762,1766576129668,500.0,0.00032876,120]
[399634763,1766576129723,500.0,0.00032876,120]
[399634764,1766576129811,500.0,0.00032876,120]
[399634765,1766576129905,500.0,0.00032876,120]
[399634766,1766576130113,500.0,0.00032876,120]
[399634767,1766576130163,500.0,0.00032876,120]
[399634768,1766576130349,500.0,0.00032876,120]
[399634769,1766576130695,500.0,0.00032876,120]
[399634770,1766576130766,500.0,0.00032876,120]
[399634771,1766576130818,500.0,0.00032876,120]
[399634772,1766576130866,500.0,0.00032876,120]
[399634773,1766576130924,500.0,0.00032876,120]
[399634774,1766576131038,500.0,0.00032876,120]
[399634775,1766576131128,500.0,0.00032876,120]
[399634776,1766576131280,500.0,0.00032876,120]
[399634777,1766576131372,500.0,0.00032876,120]
[399634778,1766576131512,500.0,0.00032876,120]
[399634779,1766576131621,500.0,0.00032876,120]
[399634780,1766576131827,500.0,0.00032876,120]
[399634781,1766576131909,500.0,0.00032876,120]
[399634782,1766576132014,500.0,0.00032876,120]
[399634783,1766576132130,304.76822013,0.00032876,120]
[399634784,1766576132239,2768.9,0.00032876,120]
[399634785,1766576132294,500.0,0.00032876,120]
[399634786,1766576132513,2768.9,0.00032876,120]
[399634787,1766576132561,500.0,0.00032876,120]
[399634788,1766576132742,2768.9,0.00032876,120]
[399634789,1766576132796,500.0,0.00032876,120]
[399634790,1766576133009,2768.9,0.00032876,120]
[399634791,1766576133062,500.0,0.00032876,120]
[399634792,1766576133210,2768.9,0.00032876,120]
[399634793,1766576133262,500.0,0.00032876,120]
[399634794,1766576133479,2768.9,0.00032876,120]
[399634795,1766576133527,217.59505354,0.00032876,120]
[399634796,1766576133574,500.0,0.00032876,120]
[399634797,1766576133743,2768.9,0.00032876,120]
[399634798,1766576133836,500.0,0.00032876,120]
[399634799,1766576133976,2768.9,0.00032876,120]
[399634800,1766576134058,500.0,0.00032876,120]
[399634801,1766576134218,2768.9,0.00032876,120]
[399634802,1766576134271,500.0,0.00032876,120]
[399634803,1766576134458,2768.9,0.00032876,120]
[399634804,1766576134524,500.0,0.00032876,120]
[399634805,1766576134680,2768.9,0.00032876,120]
[399634806,1766576134753,500.0,0.00032876,120]
[399634807,1766576134932,2768.9,0.00032876,120]
[399634808,1766576134990,500.0,0.00032876,120]
[399634809,1766576135141,2768.9,0.00032876,120]
[399634810,1766576135226,500.0,0.00032876,120]
[399634811,1766576135288,1800.55,0.00032876,120]
[399634812,1766576135366,2768.9,0.00032876,120]
[399634813,1766576135448,500.0,0.00032876,120]
[399634814,1766576135522,1800.55,0.00032876,120]
[399634815,1766576135603,2768.9,0.00032876,120]
[399634816,1766576135708,500.0,0.00032876,120]
[399634817,1766576135766,1800.55,0.00032876,120]
[399634818,1766576135836,2768.9,0.00032876,120]
[399634819,1766576135900,500.0,0.00032876,120]
[399634820,1766576135961,500.0,0.00032876,120]
[399634821,1766576136017,1800.55,0.00032876,120]
[399634822,1766576136068,2768.9,0.00032876,120]
[399634823,1766576136151,500.0,0.00032876,120]
[399634824,1766576136201,500.0,0.00032876,120]
[399634825,1766576136251,1800.55,0.00032876,120]
[399634826,1766576136306,2768.9,0.00032876,120]
[399634827,1766576136383,500.0,0.00032876,120]
[399634828,1766576136433,500.0,0.00032876,120]
[399634829,1766576136481,1800.55,0.00032876,120]
[399634830,1766576136534,2768.9,0.00032876,120]
[399634831,1766576136610,570.5427747,0.00032876,120]
[399634832,1766576136962,500.0,0.00032876,120]
[399634833,1766576137014,1800.55,0.00032876,120]
[399634834,1766576137066,2768.9,0.00032876,120]
[399634835,1766576137133,500.0,0.00032876,120]
[399634836,1766576137176,1800.55,0.00032876,120]
[399634837,1766576137243,2768.9,0.00032876,120]
[399634838,1766576137303,1800.55,0.00032876,120]
[399634839,1766576137351,500.0,0.00032876,120]
[399634840,1766576137427,2768.9,0.00032876,120]
[399634841,1766576137485,1800.55,0.00032876,120]
[399634842,1766576137536,500.0,0.00032876,120]
[399634843,1766576137621,500.0,0.00032876,120]
[399634844,1766576137671,1342.11146639,0.00032876,120]
[399634939,1766576255663,5000.0,0.000154,120]
[399634940,1766576279187,5000.0,0.000154,120]
[399635197,1766577032407,-725.22320192,7.573e-05,2]
[399635198,1766577032420,-474.77679808,7.573e-05,2]
[399635199,1766577032429,-82.48320192,7.574e-05,2]
[399635228,1766577038109,-4917.51679808,7.574e-05,2]
[399635230,1766577038120,-527.0,7.574e-05,2]
[399635232,1766577038131,-155.69924313,7.651e-05,2]
[399635234,1766577038142,-150.0,7.728e-05,2]
[399635236,1766577038155,-1680.0,8.33e-05,2]
[399635239,1766577038167,-1041.66666667,8.406e-05,2]
[399635241,1766577038177,-215.12,8.431e-05,2]
[399635243,1766577038188,-300.0,8.727e-05,2]
[399635245,1766577038199,-300.0,8.727e-05,2]
[399635247,1766577038209,-300.0,8.727e-05,2]
[399635249,1766577038221,-300.0,8.727e-05,2]
[399635251,1766577038232,-299.0,8.728e-05,2]
[399635254,1766577038243,-1200.0,8.728e-05,2]
[399635256,1766577038253,-404.86786252,8.728e-05,2]
[399635258,1766577038264,-526.152303,8.728e-05,2]
[399635260,1766577038275,-500.0,8.728e-05,2]
[399635262,1766577038286,-500.0,8.728e-05,2]
[399635264,1766577038296,-500.0,8.728e-05,2]
[399635266,1766577038307,-500.0,8.728e-05,2]
[399635268,1766577038317,-500.0,8.728e-05,2]
[399635270,1766577038327,-500.0,8.728e-05,2]
[399635272,1766577038338,-204.43714909,8.728e-05,2]
[399635274,1766577038348,-500.0,8.728e-05,2]
[399635277,1766577038359,-500.0,8.728e-05,2]
[399635279,1766577038370,-500.0,8.728e-05,2]
[399635281,1766577038380,-500.0,8.728e-05,2]
[399635282,1766577038391,-500.0,8.728e-05,2]
[399635284,1766577038401,-500.0,8.728e-05,2]
[399635287,1766577038412,-500.0,8.728e-05,2]
[399635289,1766577038422,-500.0,8.728e-05,2]
[399635291,1766577038433,-500.0,8.728e-05,2]
[399635293,1766577038443,-500.0,8.728e-05,2]
[399635295,1766577038454,-589.93434182,8.728e-05,2]
[399635297,1766577038465,-500.0,8.728e-05,2]
[399635299,1766577038479,-500.0,8.728e-05,2]
[399635301,1766577038491,-154.89831664,8.729e-05,2]
[399635303,1766577038501,-284.42458671,8.729e-05,2]
[399635305,1766577038515,-47461.94860064,8.729e-05,2]
[399635307,1766577038527,-322.68,9.133e-05,2]
[399635309,1766577038538,-299.39573206,9.213e-05,2]
[399635311,1766577038549,-2832.05255186,9.215e-05,2]
[399635313,1766577038560,-420.0,9.6e-05,2]
[399635315,1766577038570,-687.0,9.601e-05,2]
[399635317,1766577038580,-183.7251069,9.651e-05,2]
[399635319,1766577038591,-430.24,9.836e-05,2]
[399635321,1766577038601,-197.343709,9.977e-05,2]
[399635323,1766577038612,-197.343709,9.977e-05,2]
[399635325,1766577038622,-197.343709,9.977e-05,2]
[399635327,1766577038632,-197.343709,9.977e-05,2]
[399635329,1766577038643,-197.343709,9.977e-05,2]
[399635332,1766577038654,-197.343709,9.977e-05,2]
[399635333,1766577038664,-197.343709,9.977e-05,2]
[399635336,1766577038676,-197.343709,9.977e-05,2]
[399635338,1766577038686,-197.343709,9.977e-05,2]
[399635340,1766577038696,-197.343709,9.977e-05,2]
[399635342,1766577038707,-197.343709,9.977e-05,2]
[399635344,1766577038717,-197.343709,9.977e-05,2]
[399635346,1766577038728,-197.343709,9.977e-05,2]
[399635348,1766577038739,-197.343709,9.977e-05,2]
[399635350,1766577038748,-197.343709,9.977e-05,2]
[399635352,1766577038759,-197.343709,9.977e-05,2]
[399635354,1766577038770,-197.343709,9.977e-05,2]
[399635356,1766577038781,-197.343709,9.977e-05,2]
[399635358,1766577038792,-197.343709,9.977e-05,2]
[399635360,1766577038802,-197.3437,9.977e-05,2]
[399635362,1766577038814,-537.8,0.00010539,2]
[399635364,1766577038825,-500.0,0.00010958,2]
[399635366,1766577038836,-500.0,0.00010958,2]
[399635369,1766577038847,-156.23780049,0.00011236,2]
[399635370,1766577038857,-645.36,0.00011241,2]
[399635373,1766577038868,-211.75097066,0.00011651,2]
[399635375,1766577038878,-500.0,0.00011724,2]
[399635377,1766577038889,-197.04883065,0.00011725,2]
[399635379,1766577038900,-752.92,0.00011944,2]
[399635381,1766577038910,-500.0,0.00012054,2]
[399635383,1766577038922,-247.8537717,0.00012083,2]
[399635385,1766577038933,-308.6472383,0.00012083,2]
[399635387,1766577038944,-607.513448,0.00012083,2]
[399635389,1766577038954,-183.8330044,0.00012083,2]
[399635391,1766577038964,-598.7514956,0.00012083,2]
[399635393,1766577038975,-183.8330044,0.00012083,2]
[399635395,1766577038986,-183.8330044,0.00012083,2]
[399635397,1766577038997,-205.36120221,0.0001215,2]
[399635399,1766577039007,-633.0,0.00012256,2]
[399635401,1766577039017,-1367.256,0.00012256,2]
[399635403,1766577039028,-2159.0,0.00012256,2]
[399635405,1766577039038,-416.625,0.00012256,2]
[399635407,1766577039049,-500.0,0.00012326,2]
[399635409,1766577039060,-500.0,0.00012326,2]
[399635411,1766577039071,-500.0,0.00012326,2]
[399635413,1766577039082,-500.0,0.00012326,2]
[399635415,1766577039093,-500.0,0.00012328,2]
[399635417,1766577039104,-3717.57,0.00012329,2]
[399635419,1766577039116,-3097.97,0.00012329,2]
[399635421,1766577039127,-2581.64,0.00012329,2]
[399635424,1766577039139,-2151.37,0.00012329,2]
[399635426,1766577039149,-1792.81,0.00012329,2]
[399635427,1766577039159,-1494.01,0.00012329,2]
[399635430,1766577039171,-1245.0,0.00012329,2]
[399635432,1766577039182,-1037.5,0.00012329,2]
[399635434,1766577039193,-864.59,0.00012329,2]
[399635436,1766577039204,-720.49,0.00012329,2]
[399635438,1766577039214,-600.41,0.00012329,2]
[399635440,1766577039224,-500.34,0.00012329,2]
[399635442,1766577039234,-416.95,0.00012329,2]
[399635444,1766577039244,-347.46,0.00012329,2]
[399635446,1766577039255,-289.55,0.00012329,2]
[399635448,1766577039265,-241.29,0.00012329,2]
[399635450,1766577039275,-201.07,0.00012329,2]
[399635452,1766577039285,-167.56,0.00012329,2]
[399635454,1766577039295,-837.84,0.00012329,2]
[399635456,1766577039305,-2450.28767767,0.00012335,2]
[399635458,1766577039315,-151.0,0.00012418,2]
[399635460,1766577039326,-500.0,0.00012494,2]
[399635462,1766577039336,-500.0,0.00012494,2]
[399635464,1766577039346,-150.0,0.00012494,2]
[399635466,1766577039358,-150.0,0.00012494,2]
[399635468,1766577039368,-500.0,0.00012494,2]
[399635470,1766577039379,-150.0,0.00012494,2]
[399635472,1766577039390,-210.08003235,0.00012494,2]
[399635474,1766577039400,-150.0,0.00012494,2]
[399635476,1766577039411,-500.0,0.00012494,2]
[399635478,1766577039420,-500.0,0.00012494,2]
[399635480,1766577039430,-206.43198514,0.00012494,2]
[399635482,1766577039440,-263.74956448,0.00012494,2]
[399635484,1766577039450,-150.0,0.00012494,2]
[399635486,1766577039460,-150.0,0.00012494,2]
[399635488,1766577039470,-500.0,0.00012494,2]
[399635490,1766577039482,-500.0,0.00012543,2]
[399635532,1766577039884,-210.87564647,0.00012543,2]
[399635535,1766577039895,-514.84070869,0.00012543,2]
[399635537,1766577039905,-187.78006525,0.00012543,2]
[399635539,1766577039914,-152.31149464,0.00012543,2]
[399635541,1766577039924,-152.54695802,0.00012543,2]
[399635543,1766577039934,-250.0,0.00012543,2]
[399635545,1766577039943,-250.0,0.00012543,2]
[399635547,1766577039953,-217.47493711,0.00012543,2]
[399635549,1766577039962,-150.0,0.00012588,2]
[399635551,1766577039972,-500.0,0.00012588,2]
[399635553,1766577039982,-500.0,0.00012588,2]
[399635555,1766577039991,-500.0,0.00012588,2]
[399635557,1766577040001,-500.0,0.00012588,2]
[399635559,1766577040011,-500.0,0.00012588,2]
[399635561,1766577040020,-500.0,0.00012588,2]
[399635563,1766577040030,-157.9049439,0.00012588,2]
[399635565,1766577040039,-190.0271153,0.00012588,2]
[399635567,1766577040049,-500.0,0.00012631,2]
[399635569,1766577040058,-523.00111397,0.00012631,2]
[399635571,1766577040067,-150.0,0.00012631,2]
[399635573,1766577040077,-150.0,0.00012631,2]
[399635575,1766577040087,-613.77932454,0.00012631,2]
[399635577,1766577040096,-150.0,0.00012631,2]
[399635579,1766577040106,-150.0,0.00012631,2]
[399635581,1766577040116,-500.0,0.00012631,2]
[399635583,1766577040126,-500.0,0.00012631,2]
[399635585,1766577040136,-162.1525486,0.00012631,2]
[399635587,1766577040146,-150.0,0.00012631,2]
[399635589,1766577040155,-500.0,0.00012631,2]
[399635591,1766577040165,-860.49,0.00012646,2]
[399635593,1766577040174,-150.5,0.00012669,2]
[399635595,1766577040184,-170.07897238,0.00012725,2]
[399635597,1766577040194,-500.0,0.00012725,2]
[399635599,1766577040203,-500.0,0.00012725,2]
[399635601,1766577040213,-500.0,0.00012725,2]
[399635603,1766577040224,-500.0,0.00012725,2]
[399635605,1766577040234,-500.0,0.00012725,2]
[399635607,1766577040244,-500.0,0.00012725,2]
[399635609,1766577040253,-500.0,0.00012725,2]
[399635611,1766577040263,-1238.0212677,0.00012726,2]
[399635613,1766577040273,-23364.076076,0.00012726,2]
[399635615,1766577040283,-13374.1453989,0.00012767,2]
[399635617,1766577040293,-151.0,0.00012767,2]
[399635619,1766577040303,-457.83953985,0.00012768,2]
[399635621,1766577040312,-150.0,0.00012768,2]
[399635623,1766577040322,-150.0,0.00012768,2]
[399635625,1766577040332,-227.74264453,0.00012768,2]
[399635627,1766577040342,-151.93316026,0.00012768,2]
[399635629,1766577040351,-500.0,0.00012768,2]
[399635631,1766577040361,-500.0,0.00012768,2]
[399635633,1766577040371,-150.0,0.00012768,2]
[399635635,1766577040381,-500.0,0.00012768,2]
[399635637,1766577040391,-500.0,0.00012768,2]
[399635639,1766577040400,-155.658401,0.00012769,2]
[399635641,1766577040410,-183.8330044,0.00012778,2]
[399635643,1766577040420,-598.7514956,0.00012778,2]
[399635645,1766577040429,-500.0,0.00012861,2]
[399635647,1766577040439,-500.0,0.00012862,2]
[399635649,1766577040449,-500.0,0.00012862,2]
[399635651,1766577040459,-589.74685809,0.00012862,2]
[399635653,1766577040469,-500.0,0.00012862,2]
[399635655,1766577040484,-213.92678941,0.00012862,2]
[399635656,1766577040493,-370.60437313,0.00012862,2]
[399635658,1766577040502,-961.4894423,0.0001287,2]
[399635660,1766577040516,-2129.12289752,0.0001287,2]
[399635663,1766577040540,-406.00179008,0.0001287,2]
[399635667,1766577040566,-467.62119115,0.0001287,2]
[399635686,1766577041085,-0.00231996,0.0001287,2]
[399635897,1766577043202,-11341.79838298,0.0001287,2]
[399635899,1766577043213,-168.0,0.0001287,2]
[399635900,1766577043222,-500.0,0.00012899,2]
[399635902,1766577043231,-150.0,0.00012905,2]
[399635904,1766577043241,-172.4290016,0.00012905,2]
[399635906,1766577043251,-500.0,0.00012905,2]
[399635908,1766577043261,-500.0,0.00012905,2]
[399635910,1766577043271,-158.18295409,0.00012905,2]